[Event "Sunway Sitges Chess Festival"]
[Date "2024.12.21"]
[White "Charvein, Gabriel"]
[Black "Lacasa Diaz, Josep Anton"]
[WhiteElo "2119"]
[BlackElo "2324"]
[Round "8.36"]
[Result "0-1"]
[TimeControl "40/5400+30:1800+30"]

1. e4 {[%clk 1:27:27]} 1... c5 {[%clk 1:30:51]} 2. d4 {[%clk 1:27:14]} 2... cxd4
{[%clk 1:31:10]} 3. c3 {[%clk 1:28:16]} 3... d3 {[%clk 1:30:08]} 4. Bxd3 {[%clk
1:28:39]} 4... Nc6 {[%clk 1:30:33]} 5. c4 {[%clk 1:29:04]} 5... g6 {[%clk
1:30:57]} 6. Nf3 {[%clk 1:29:30]} 6... Bg7 {[%clk 1:31:20]} 7. O-O {[%clk
1:29:55]} 7... d6 {[%clk 1:31:42]} 8. h3 {[%clk 1:30:21]} 8... Nf6 {[%clk
1:31:57]} 9. Nc3 {[%clk 1:30:46]} 9... O-O {[%clk 1:32:12]} 10. Be3 {[%clk
1:25:14]} 10... Nd7 {[%clk 1:27:09]} 11. Rc1 {[%clk 1:17:42]} 11... Nc5 {[%clk
1:18:02]} 12. Bb1 {[%clk 1:09:20]} 12... a5 {[%clk 1:11:20]} 13. b3 {[%clk
1:04:55]} 13... b6 {[%clk 1:06:10]} 14. Qd2 {[%clk 1:17:08]} 14... Bb7 {[%clk
0:55:09]} 15. Rfd1 {[%clk 1:12:12]} 15... Re8 {[%clk 0:49:52]} 16. Nd5 {[%clk
1:04:38]} 16... Rb8 {[%clk 0:37:56]} 17. Nd4 {[%clk 0:51:51]} 17... Nxd4 {[%clk
0:49:02]} 18. Bxd4 {[%clk 0:45:59]} 18... Bxd4 {[%clk 0:48:26]} 19. Qxd4 {[%clk
0:46:03]} 19... Bxd5 {[%clk 0:45:51]} 20. Qxd5 {[%clk 0:45:22]} 20... Qc7 {[%clk
0:41:57]} 21. h4 {[%clk 0:42:13]} 21... Nd7 {[%clk 0:39:21]} 22. Qd2 {[%clk
0:38:19]} 22... Nf6 {[%clk 0:23:22]} 23. g3 {[%clk 0:18:37]} 23... Qc5 {[%clk
0:36:46]} 24. Kg2 {[%clk 0:18:22]} 24... Rec8 {[%clk 0:34:10]} 25. Re1 {[%clk
0:12:02]} 25... h5 {[%clk 0:32:25]} 26. f3 {[%clk 0:09:04]} 26... Kg7 {[%clk
0:32:15]} 27. e5 {[%clk 0:08:16]} 27... dxe5 {[%clk 0:31:33]} 28. Qg5 {[%clk
0:05:35]} 28... Rd8 {[%clk 0:22:37]} 29. Rxe5 {[%clk 0:09:04]} 29... Qb4 {[%clk
0:22:51]} 30. Re2 {[%clk 0:08:55]} 30... Rd7 {[%clk 0:20:27]} 31. Rce1 {[%clk
0:07:45]} 31... Rbd8 {[%clk 0:19:18]} 32. Kh3 {[%clk 0:01:01]} 32... a4 {[%clk
0:13:23]} 33. Re3 {[%clk 0:03:52]} 33... axb3 {[%clk 0:09:00]} 34. axb3 {[%clk
0:04:20]} 34... Rc7 {[%clk 0:07:49]} 35. f4 {[%clk 0:01:03]} 35... Rd4 {[%clk
0:04:17]} 36. Qe5 {[%clk 0:02:46]} 36... Qd6 {[%clk 0:03:43]} 37. Qxd6 {[%clk
0:02:08]} 37... exd6 {[%clk 0:04:11]} 38. Rd3 {[%clk 0:01:44]} 38... Rxd3 {[%clk
0:02:37]} 39. Bxd3 {[%clk 0:02:13]} 39... Ra7 {[%clk 0:02:50]} 40. Kg2 {[%clk
0:30:35]} 40... Ra3 {[%clk 0:32:06]} 41. Bc2 {[%clk 0:15:45]} 41... Ra2 {[%clk
0:22:24]} 42. Rc1 {[%clk 0:24:33]} 42... Ng4 {[%clk 0:17:58]} 43. Kf3 {[%clk
0:22:14]} 43... f5 {[%clk 0:18:05]} 44. Ke2 {[%clk 0:21:16]} 44... Nf6 {[%clk
0:17:37]} 45. Ke3 {[%clk 0:21:13]} 45... Kf7 {[%clk 0:16:28]} 46. Kd4 {[%clk
0:20:19]} 46... Ke6 {[%clk 0:15:57]} 47. Re1+ {[%clk 0:19:17]} 47... Kd7 {[%clk
0:13:59]} 48. Kc3 {[%clk 0:16:33]} 48... d5 {[%clk 0:15:53]} 49. Rd1 {[%clk
0:11:34]} 49... Kc6 {[%clk 0:16:01]} 50. b4 {[%clk 0:03:53]} 50... dxc4 {[%clk
0:15:41]} 51. Bb1 {[%clk 0:04:54]} 51... Ra3+ {[%clk 0:14:28]} 52. Kxc4 {[%clk
0:05:22]} 52... Rxg3 {[%clk 0:14:18]} 53. b5+ {[%clk 0:05:33]} 53... Kc7 {[%clk
0:14:29]} 54. Kd4 {[%clk 0:06:02]} 54... Nd7 {[%clk 0:13:21]} 55. Kd5 {[%clk
0:05:04]} 55... Rg4 {[%clk 0:13:18]} 56. Ke6 {[%clk 0:05:33]} 56... Nc5+ {[%clk
0:13:12]} 57. Kf7 {[%clk 0:04:56]} 57... Rxh4 {[%clk 0:11:35]} 58. Kxg6 {[%clk
0:05:25]} 58... Rxf4 {[%clk 0:09:42]} 59. Bxf5 {[%clk 0:04:02]} 59... h4 {[%clk
0:12:12]} 60. Kg5 {[%clk 0:04:22]} 60... Rb4 {[%clk 0:12:20]} 61. Rh1 {[%clk
0:03:26]} 61... Ne4+ {[%clk 0:12:05]} 62. Kg6 {[%clk 0:00:13]} 62... Nd6 {[%clk
0:12:07]} 63. Rc1+ {[%clk 0:01:01]} 63... Kd8 {[%clk 0:12:15]} 64. Rd1 {[%clk
0:01:10]} 64... Kc7 {[%clk 0:12:30]} 65. Rc1+ {[%clk 0:01:39]} 65... Kb8 {[%clk
0:11:57]} 66. Bd7 {[%clk 0:00:40]} 66... Nxb5 {[%clk 0:12:41]} 67. Kg5 {[%clk
0:00:50]} 67... Nd6 {[%clk 0:11:38]} 68. Be6 {[%clk 0:00:32]} 68... b5 {[%clk
0:10:03]} 69. Bd7 {[%clk 0:00:39]} 69... Rc4 {[%clk 0:08:40]} 70. Rxc4 {[%clk
0:00:32]} 70... bxc4 {[%clk 0:09:00]} 71. Kxh4 {[%clk 0:00:54]} 71... Kc7 {[%clk
0:09:25]} 72. Ba4 {[%clk 0:00:38]} 72... Kb6 {[%clk 0:09:49]} 73. Kg3 {[%clk
0:00:39]} 73... Ka5 {[%clk 0:10:15]} 74. Bc2 {[%clk 0:00:39]} 74... Kb4 {[%clk
0:10:40]} 75. Kf2 {[%clk 0:00:35]} 75... Kc3 {[%clk 0:11:04]} 76. Bh7 {[%clk
0:00:32]} 76... Kd2 {[%clk 0:11:27]} 77. Kf3 {[%clk 0:00:-5]} 0-1

[Variant "Standard"]
[Site "Europe Echecs"]

[Event "Sunway Sitges Chess Festival"]
[Date "2024.12.21"]
[White "Koskinen, Henri"]
[Black "Domingo Nunez, Alejandro"]
[WhiteElo "2118"]
[BlackElo "2318"]
[Round "8.37"]
[Result "0-1"]
[TimeControl "40/5400+30:1800+30"]

1. c4 {[%clk 1:30:53]} 1... g6 {[%clk 1:30:34]} 2. g3 {[%clk 1:29:55]} 2... Bg7
{[%clk 1:30:17]} 3. Bg2 {[%clk 1:30:57]} 3... c5 {[%clk 1:30:44]} 4. Nf3 {[%clk
1:30:14]} 4... Nc6 {[%clk 1:31:10]} 5. O-O {[%clk 1:25:44]} 5... Nh6 {[%clk
1:27:41]} 6. Nc3 {[%clk 1:27:30]} 6... Nf5 {[%clk 1:27:55]} 7. a3 {[%clk
1:17:03]} 7... O-O {[%clk 1:17:58]} 8. Rb1 {[%clk 1:23:00]} 8... e6 {[%clk
1:16:19]} 9. b4 {[%clk 1:18:32]} 9... d6 {[%clk 1:14:55]} 10. e3 {[%clk
0:59:10]} 10... b6 {[%clk 0:55:38]} 11. Ne2 {[%clk 0:53:19]} 11... Bb7 {[%clk
0:50:54]} 12. Bb2 {[%clk 0:25:13]} 12... Bxb2 {[%clk 0:26:58]} 13. Rxb2 {[%clk
1:04:24]} 13... Rc8 {[%clk 0:27:23]} 14. Qb3 {[%clk 0:58:37]} 14... Qf6 {[%clk
0:20:40]} 15. d3 {[%clk 0:50:58]} 15... Rfd8 {[%clk 0:10:43]} 16. Qc3 {[%clk
0:39:32]} 16... Qe7 {[%clk 0:-1:-2]} 17. Rd1 {[%clk 0:35:07]} 17... Ba8 {[%clk
0:-2:-20]} 18. Qb3 {[%clk 0:32:58]} 18... Qf6 {[%clk 0:-5:-11]} 19. Qc3 {[%clk
0:26:25]} 19... Qe7 {[%clk 0:-5:-41]} 20. Qb3 {[%clk 0:25:44]} 20... Rd7 {[%clk
0:09:47]} 21. Rbd2 {[%clk 0:26:04]} 21... Qf6 {[%clk 0:09:51]} 22. Qc3 {[%clk
0:25:58]} 22... Qxc3 {[%clk 0:10:10]} 23. Nxc3 cxb4 24. Ne4 {[%clk 0:25:37]}
24... Kg7 {[%clk 0:10:31]} 25. axb4 {[%clk 0:25:16]} 25... Nxb4 {[%clk 0:10:56]}
26. Ne1 {[%clk 0:23:46]} 26... d5 {[%clk 0:09:33]} 27. cxd5 {[%clk 0:22:00]}
27... Bxd5 {[%clk 0:07:37]} 28. d4 {[%clk 0:21:23]} 28... a5 {[%clk 0:03:47]}
29. Nd3 {[%clk 0:20:00]} 29... Nxd3 {[%clk 0:07:22]} 30. Rxd3 {[%clk 0:19:22]}
30... Bxe4 {[%clk 0:07:12]} 31. Bxe4 {[%clk 0:20:48]} 31... Nd6 {[%clk 0:06:55]}
32. Bf3 {[%clk 0:20:49]} 32... b5 {[%clk 0:06:16]} 33. Rb1 {[%clk 0:18:48]}
33... b4 {[%clk 0:04:38]} 34. d5 {[%clk 0:20:17]} 34... e5 {[%clk 0:04:24]} 35.
Rdb3 {[%clk 0:18:33]} 35... Rdc7 {[%clk 0:05:12]} 36. Kg2 {[%clk 0:17:50]} 36...
e4 {[%clk 0:04:37]} 37. Be2 {[%clk 0:17:29]} 37... Rc1 {[%clk 0:03:41]} 38. f3
{[%clk 0:15:25]} 38... Rxb1 {[%clk 0:02:57]} 39. Rxb1 {[%clk 0:15:22]} 39... Rc2
{[%clk 0:02:16]} 40. Kf1 {[%clk 0:14:27]} 40... exf3 {[%clk 0:32:30]} 41. Bxf3
{[%clk 0:13:18]} 41... Kf6 {[%clk 0:31:59]} 0-1

[Variant "Standard"]
[Site "Europe Echecs"]

[Event "Sunway Sitges Chess Festival"]
[Date "2024.12.21"]
[White "Svensen, Tarjei Joten"]
[Black "Boricha Yohan"]
[WhiteElo "1991"]
[BlackElo "1888"]
[Round "8.38"]
[Result "0-1"]
[TimeControl "40/5400+30:1800+30"]

1. d4 {[%clk 1:29:23]} 1... d5 {[%clk 1:30:49]} 2. c4 {[%clk 1:29:19]} 2... e6
{[%clk 1:31:13]} 3. Nc3 {[%clk 1:29:32]} 3... Nf6 {[%clk 1:31:35]} 4. Nf3 {[%clk
1:28:49]} 4... Nbd7 {[%clk 1:31:39]} 5. cxd5 {[%clk 1:21:22]} 5... exd5 {[%clk
1:32:04]} 6. Bf4 {[%clk 1:21:42]} 6... Bb4 {[%clk 1:28:50]} 7. Qb3 {[%clk
1:15:28]} 7... c5 {[%clk 1:24:20]} 8. dxc5 {[%clk 1:13:36]} 8... Qa5 {[%clk
1:24:35]} 9. a3 {[%clk 1:10:29]} 9... Bxc3+ {[%clk 1:24:42]} 10. Qxc3 {[%clk
1:10:43]} 10... Qxc3+ {[%clk 1:25:01]} 11. bxc3 {[%clk 1:11:08]} 11... Nxc5
{[%clk 1:22:25]} 12. Be5 {[%clk 1:03:36]} 12... Be6 {[%clk 1:06:16]} 13. e3
{[%clk 0:57:14]} 13... O-O {[%clk 1:03:56]} 14. Be2 {[%clk 0:51:33]} 14... Nfe4
{[%clk 0:58:07]} 15. Rb1 {[%clk 0:48:08]} 15... Rac8 {[%clk 0:38:12]} 16. O-O
{[%clk 0:29:31]} 16... b6 {[%clk 0:34:58]} 17. Bb5 {[%clk 0:22:03]} 17... a6
{[%clk 0:32:05]} 18. Be2 {[%clk 0:21:27]} 18... b5 {[%clk 0:26:37]} 19. Bd4
{[%clk 0:09:01]} 19... Na4 {[%clk 0:31:28]} 20. Bd3 {[%clk 0:05:01]} 20... Nexc3
{[%clk 0:25:11]} 21. Rb3 {[%clk 0:08:57]} 21... Ne4 {[%clk 0:24:47]} 22. Rb4
{[%clk 0:07:56]} 22... Nd6 {[%clk 0:20:39]} 23. Be5 {[%clk 0:03:04]} 23... Nc4
{[%clk 0:12:21]} 24. Ba1 {[%clk 0:04:47]} 24... Nc5 {[%clk 0:09:46]} 25. Bxc4
{[%clk 0:03:14]} 25... dxc4 {[%clk 0:10:14]} 26. Bc3 {[%clk 0:02:17]} 26... Rb8
{[%clk 0:04:39]} 27. Nd4 {[%clk 0:02:45]} 27... Ne4 {[%clk 0:04:28]} 28. Rc1
{[%clk 0:02:55]} 28... Nxc3 {[%clk 0:03:17]} 29. Rxc3 {[%clk 0:03:24]} 29... Bd7
{[%clk 0:03:39]} 30. Rb1 {[%clk 0:01:50]} 30... Rfc8 {[%clk 0:03:45]} 31. Kf1
{[%clk 0:01:42]} 31... a5 {[%clk 0:03:00]} 32. Rbc1 {[%clk 0:01:45]} 32... f6
{[%clk 0:02:20]} 33. a4 {[%clk 0:01:54]} 33... b4 {[%clk 0:00:53]} 34. Rxc4
{[%clk 0:02:22]} 34... Rxc4 {[%clk 0:01:19]} 35. Rxc4 {[%clk 0:02:45]} 35... b3
{[%clk 0:00:50]} 36. Rc1 {[%clk 0:02:22]} 36... Bxa4 {[%clk 0:00:59]} 37. Ke1
{[%clk 0:02:12]} 37... Be8 {[%clk 0:00:52]} 38. Kd2 {[%clk 0:02:18]} 38... Bg6
{[%clk 0:00:55]} 39. Nc6 {[%clk 0:01:41]} 39... Rb5 {[%clk 0:00:39]} 40. Ne7+
{[%clk 0:31:37]} 40... Kf7 {[%clk 0:31:04]} 41. Nxg6 {[%clk 0:32:01]} 41... Kxg6
{[%clk 0:31:19]} 42. Rb1 {[%clk 0:31:10]} 42... a4 {[%clk 0:30:13]} 43. Kc3
{[%clk 0:31:27]} 43... Rc5+ {[%clk 0:30:30]} 44. Kb4 {[%clk 0:31:20]} 44... Rc2
{[%clk 0:30:42]} 45. Kxa4 {[%clk 0:31:09]} 45... Rxf2 {[%clk 0:30:47]} 46. Kxb3
{[%clk 0:29:15]} 46... Rxg2 {[%clk 0:31:11]} 47. Kc3 {[%clk 0:26:08]} 47... Rxh2
{[%clk 0:30:44]} 48. Kd3 {[%clk 0:26:32]} 48... h5 {[%clk 0:28:10]} 49. Rg1+
{[%clk 0:26:39]} 49... Kh6 {[%clk 0:28:32]} 50. Ke4 {[%clk 0:27:01]} 50... Rf2
{[%clk 0:28:37]} 51. Kd5 {[%clk 0:26:01]} 51... g5 {[%clk 0:28:34]} 52. Ke6
{[%clk 0:26:24]} 52... Kg6 {[%clk 0:24:38]} 0-1

[Variant "Standard"]
[Site "Europe Echecs"]

[Event "Sunway Sitges Chess Festival"]
[Date "2024.12.21"]
[White "De Seroux, Camille"]
[Black "Stevens, Christian"]
[WhiteElo "2126"]
[BlackElo "1945"]
[Round "8.40"]
[Result "0-1"]
[TimeControl "40/5400+30:1800+30"]

1. e4 {[%clk 1:28:56]} 1... c5 {[%clk 1:30:45]} 2. Nc3 {[%clk 1:28:56]} 2... Nc6
{[%clk 1:30:54]} 3. f4 {[%clk 1:29:18]} 3... e6 {[%clk 1:31:07]} 4. Nf3 {[%clk
1:29:16]} 4... a6 {[%clk 1:30:48]} 5. a4 {[%clk 1:17:33]} 5... d6 {[%clk
1:29:56]} 6. Bc4 {[%clk 1:16:38]} 6... Qc7 {[%clk 1:25:00]} 7. d3 {[%clk
1:14:49]} 7... g6 {[%clk 1:19:23]} 8. O-O {[%clk 1:08:52]} 8... Bg7 {[%clk
1:19:23]} 9. Qe1 {[%clk 0:53:57]} 9... Nge7 {[%clk 1:10:47]} 10. Qh4 {[%clk
0:49:04]} 10... Bd7 {[%clk 1:05:03]} 11. Ng5 {[%clk 0:39:20]} 11... Nd4 {[%clk
0:58:18]} 12. f5 {[%clk 0:36:24]} 12... gxf5 {[%clk 0:46:58]} 13. Qh5 {[%clk
0:32:02]} 13... Rf8 {[%clk 0:42:35]} 14. Qxh7 {[%clk 0:24:09]} 14... Be5 {[%clk
0:38:33]} 15. Qh5 {[%clk 0:21:09]} 15... O-O-O {[%clk 0:35:21]} 16. h3 {[%clk
0:17:45]} 16... Be8 {[%clk 0:21:28]} 17. Qd1 {[%clk 0:16:53]} 17... Bc6 {[%clk
0:18:50]} 18. Ne2 {[%clk 0:15:39]} 18... d5 {[%clk 0:17:24]} 19. exd5 {[%clk
0:15:54]} 19... Nxd5 {[%clk 0:17:27]} 20. c3 {[%clk 0:15:00]} 20... Nxe2+ {[%clk
0:17:33]} 21. Qxe2 {[%clk 0:15:25]} 21... Rg8 {[%clk 0:16:46]} 22. Nf3 {[%clk
0:14:02]} 22... Bd6 {[%clk 0:16:04]} 23. d4 {[%clk 0:13:34]} 23... Rg3 {[%clk
0:15:05]} 24. Rf2 {[%clk 0:11:41]} 24... Rdg8 {[%clk 0:14:28]} 25. Kh1 {[%clk
0:11:38]} 25... Nf6 {[%clk 0:11:38]} 26. dxc5 {[%clk 0:07:07]} 26... Bxc5 {[%clk
0:11:37]} 27. Ne5 {[%clk 0:01:20]} 27... Bxf2 {[%clk 0:10:12]} 28. Qxf2 {[%clk
0:01:31]} 28... Rxg2 {[%clk 0:09:18]} 0-1

[Variant "Standard"]
[Site "Europe Echecs"]

[Event "Sunway Sitges Chess Festival"]
[Date "2024.12.21"]
[White "Schulman, Julia"]
[Black "Rana, Oliver"]
[WhiteElo "1852"]
[BlackElo "1911"]
[Round "8.41"]
[Result "1/2-1/2"]
[TimeControl "40/5400+30:1800+30"]

1. e4 {[%clk 1:30:30]} 1... c6 {[%clk 1:22:12]} 2. d4 {[%clk 1:30:53]} 2... d5
{[%clk 1:22:35]} 3. e5 {[%clk 1:31:05]} 3... g6 {[%clk 1:21:21]} 4. Nf3 {[%clk
1:27:11]} 4... Bg7 {[%clk 1:20:44]} 5. Bd3 {[%clk 1:25:45]} 5... Nh6 {[%clk
1:21:04]} 6. c3 {[%clk 1:19:47]} 6... O-O {[%clk 1:20:42]} 7. O-O {[%clk
1:17:44]} 7... f6 {[%clk 1:13:58]} 8. exf6 {[%clk 1:17:06]} 8... exf6 {[%clk
1:13:37]} 9. Re1 {[%clk 1:14:34]} 9... Re8 {[%clk 1:08:19]} 10. Rxe8+ {[%clk
1:10:44]} 10... Qxe8 {[%clk 1:07:50]} 11. h3 {[%clk 1:07:51]} 11... Bf5 {[%clk
1:02:47]} 12. Bxh6 {[%clk 0:58:13]} 12... Bxd3 {[%clk 1:01:09]} 13. Bxg7 {[%clk
0:56:59]} 13... Be2 {[%clk 1:00:49]} 14. Qe1 {[%clk 0:55:04]} 14... Kxg7 {[%clk
1:01:13]} 15. Nbd2 {[%clk 0:52:09]} 15... Nd7 {[%clk 1:01:13]} 16. a4 {[%clk
0:48:35]} 16... Bxf3 {[%clk 0:44:33]} 17. Nxf3 {[%clk 0:48:55]} 17... Qxe1+
{[%clk 0:44:46]} 18. Rxe1 {[%clk 0:49:16]} 18... Kf7 {[%clk 0:45:14]} 19. Kf1
{[%clk 0:46:54]} 19... a5 {[%clk 0:41:57]} 20. b3 {[%clk 0:38:59]} 20... Ra6
{[%clk 0:32:48]} 21. Rb1 {[%clk 0:32:38]} 21... Rb6 {[%clk 0:29:14]} 22. Nd2
{[%clk 0:31:03]} 22... c5 {[%clk 0:29:17]} 23. dxc5 {[%clk 0:28:30]} 23... Nxc5
{[%clk 0:29:36]} 24. f3 {[%clk 0:25:50]} 24... Rc6 {[%clk 0:25:42]} 25. Rd1
{[%clk 0:20:04]} 25... Rb6 {[%clk 0:24:37]} 26. Rb1 {[%clk 0:20:29]} 26... Rc6
{[%clk 0:24:19]} 27. Rd1 {[%clk 0:19:53]} 27... Rb6 {[%clk 0:24:23]} 28. Rb1
{[%clk 0:19:49]} 28... Rc6 {[%clk 0:24:21]} 29. Rd1 {[%clk 0:15:45]} 1/2-1/2

[Variant "Standard"]
[Site "Europe Echecs"]

[Event "Sunway Sitges Chess Festival"]
[Date "2024.12.21"]
[White "Guez, Fabien"]
[Black "Sayce, Hannah"]
[WhiteElo "1968"]
[BlackElo "1821"]
[Round "8.42"]
[Result "0-1"]
[TimeControl "40/5400+30:1800+30"]

1. e4 {[%clk 1:20:06]} 1... c5 {[%clk 1:30:53]} 2. Nf3 {[%clk 1:20:05]} 2... d6
{[%clk 1:31:16]} 3. Bb5+ {[%clk 1:20:26]} 3... Nd7 {[%clk 1:30:24]} 4. d4 {[%clk
1:19:57]} 4... cxd4 {[%clk 1:30:47]} 5. Qxd4 {[%clk 1:18:56]} 5... Nf6 {[%clk
1:28:56]} 6. O-O {[%clk 1:17:32]} 6... a6 {[%clk 1:28:45]} 7. Bxd7+ {[%clk
1:17:02]} 7... Bxd7 {[%clk 1:28:51]} 8. c4 {[%clk 1:14:26]} 8... Bc6 {[%clk
1:25:05]} 9. Nc3 {[%clk 1:18:31]} 9... e6 {[%clk 1:14:11]} 10. Bg5 {[%clk
1:17:26]} 10... Be7 {[%clk 1:09:08]} 11. Rad1 {[%clk 1:16:08]} 11... Qa5 {[%clk
1:05:32]} 12. Rfe1 {[%clk 1:10:13]} 12... O-O {[%clk 0:48:55]} 13. Rd2 {[%clk
1:04:06]} 13... Rfd8 {[%clk 0:43:02]} 14. Nd5 {[%clk 1:00:38]} 14... Bxd5 {[%clk
0:41:46]} 15. exd5 {[%clk 0:59:33]} 15... e5 {[%clk 0:31:39]} 16. Qd3 {[%clk
0:27:38]} 16... h6 {[%clk 0:29:21]} 17. Bxf6 {[%clk 0:24:47]} 17... Bxf6 {[%clk
1:03:00]} 18. a3 {[%clk 0:24:53]} 18... Rac8 19. b4 {[%clk 0:22:20]} 19... Qa4
{[%clk 0:57:25]} 20. Rc2 {[%clk 0:13:42]} 20... Qd7 {[%clk 0:49:15]} 21. Nd2
{[%clk 0:14:58]} 21... Be7 {[%clk 0:48:31]} 22. Nb3 {[%clk 0:09:45]} 22... b5
{[%clk 0:46:53]} 23. cxb5 {[%clk 0:09:13]} 23... Rxc2 {[%clk 0:46:46]} 24. Qxc2
{[%clk 0:08:51]} 24... Rc8 {[%clk 0:45:48]} 25. Qd3 {[%clk 0:09:57]} 25... axb5
{[%clk 0:42:09]} 26. Na5 {[%clk 0:04:27]} 26... Bg5 {[%clk 0:45:32]} 27. Nc6
{[%clk 0:08:20]} 27... Qb7 28. g3 {[%clk 0:05:26]} 28... g6 {[%clk 0:44:46]} 29.
f4 {[%clk 0:08:12]} 29... exf4 {[%clk 0:43:50]} 30. gxf4 {[%clk 0:06:33]} 30...
Bh4 {[%clk 0:43:40]} 31. Re2 {[%clk 0:02:53]} 31... Qd7 {[%clk 0:42:51]} 32. Qe3
{[%clk 0:-2:-29]} 32... Qg4+ {[%clk 0:41:38]} 33. Kh1 {[%clk 0:03:13]} 33... Qf5
{[%clk 0:41:30]} 34. Qe4 {[%clk 0:02:38]} 34... Qh3 {[%clk 0:40:49]} 35. Rg2
{[%clk 0:00:30]} 35... Kg7 {[%clk 0:40:34]} 36. f5 {[%clk 0:-3:-6]} 36... Bg5
{[%clk 0:37:31]} 37. fxg6 {[%clk 0:-6:-56]} 37... fxg6 {[%clk 0:34:09]} 38. Qd4+
{[%clk 0:01:31]} 38... Bf6 {[%clk 0:33:56]} 39. Qe4 {[%clk 0:00:-19]} 39... Bg5
{[%clk 0:33:37]} 40. Qd4+ {[%clk 0:27:06]} 40... Kh7 {[%clk 1:00:32]} 41. Rf2
{[%clk 0:14:01]} 41... Qd7 {[%clk 0:58:21]} 42. Qd3 {[%clk 0:09:51]} 42... Qe8
{[%clk 0:54:58]} 43. Qf3 {[%clk 0:07:39]} 43... Kg7 {[%clk 0:50:47]} 44. Kg2
{[%clk 0:06:13]} 44... h5 {[%clk 0:49:42]} 45. Nd4 {[%clk 0:06:33]} 45... Kh6
{[%clk 0:48:50]} 46. Ne6 {[%clk 0:03:28]} 46... Rc4 {[%clk 0:48:54]} 47. h3
{[%clk 0:02:45]} 47... Bc1 {[%clk 0:46:46]} 48. Qf6 {[%clk 0:00:29]} 48... Qg8
{[%clk 0:46:08]} 49. Qe7 {[%clk 0:00:57]} 49... Qh8 {[%clk 0:45:56]} 50. Rf6
{[%clk 0:01:20]} 50... Bb2 51. Rxg6+ {[%clk 0:00:43]} 51... Kxg6 {[%clk
0:44:03]} 52. Qg5+ {[%clk 0:01:35]} 52... Kf7 {[%clk 0:43:53]} 53. Qf5+ {[%clk
0:00:32]} 53... Ke7 {[%clk 0:43:51]} 54. Ng5 {[%clk 0:00:40]} 54... Qg8 {[%clk
0:43:36]} 55. Kh1 {[%clk 0:-2:-4]} 55... Be5 {[%clk 0:42:29]} 0-1

[Variant "Standard"]
[Site "Europe Echecs"]

[Event "Sunway Sitges Chess Festival"]
[Date "2024.12.21"]
[White "Rivlin, Shachar"]
[Black "Koridze, Lile"]
[WhiteElo "2057"]
[BlackElo "2107"]
[Round "8.43"]
[Result "1/2-1/2"]
[TimeControl "40/5400+30:1800+30"]

1. d4 {[%clk 1:26:17]} 1... Nf6 {[%clk 1:30:55]} 2. c4 {[%clk 1:26:36]} 2... e6
{[%clk 1:31:06]} 3. Nf3 {[%clk 1:26:57]} 3... d5 {[%clk 1:31:32]} 4. Nc3 {[%clk
1:27:11]} 4... Bb4 {[%clk 1:31:53]} 5. Bg5 {[%clk 1:27:27]} 5... h6 {[%clk
1:32:08]} 6. Bxf6 {[%clk 1:27:43]} 6... Qxf6 {[%clk 1:32:30]} 7. cxd5 {[%clk
1:27:04]} 7... exd5 {[%clk 1:29:09]} 8. Qa4+ {[%clk 1:27:21]} 8... Nc6 {[%clk
1:28:37]} 9. e3 {[%clk 1:27:25]} 9... O-O {[%clk 1:22:54]} 10. Be2 {[%clk
1:27:19]} 10... Be6 {[%clk 0:52:33]} 11. O-O {[%clk 1:27:11]} 11... a6 {[%clk
0:51:13]} 12. Rfc1 {[%clk 1:26:47]} 12... Bd6 {[%clk 0:50:46]} 13. Qd1 {[%clk
1:26:17]} 13... Ne7 {[%clk 0:49:16]} 14. a3 {[%clk 1:22:48]} 14... b6 {[%clk
0:48:01]} 15. b4 {[%clk 1:18:37]} 15... Rfc8 {[%clk 0:39:20]} 16. Qf1 {[%clk
1:14:11]} 16... b5 {[%clk 0:22:15]} 17. Nb1 {[%clk 0:47:10]} 17... c5 {[%clk
0:18:22]} 18. bxc5 {[%clk 0:41:30]} 18... Bxc5 {[%clk 0:18:48]} 19. Nbd2 {[%clk
0:39:53]} 19... Bd6 {[%clk 0:17:57]} 20. a4 {[%clk 0:37:26]} 20... bxa4 {[%clk
0:15:43]} 21. Rxa4 {[%clk 0:34:51]} 21... a5 {[%clk 0:14:50]} 22. Nb3 {[%clk
0:33:46]} 22... Bb4 {[%clk 0:14:45]} 23. Ne5 {[%clk 0:32:11]} 23... Bf5 {[%clk
0:12:57]} 24. Bd3 {[%clk 0:29:40]} 24... Rxc1 {[%clk 0:10:47]} 25. Qxc1 {[%clk
0:29:33]} 25... Rc8 {[%clk 0:11:09]} 26. Qd1 {[%clk 0:21:57]} 26... Qb6 {[%clk
0:07:46]} 27. g3 {[%clk 0:19:16]} 27... Be6 {[%clk 0:06:56]} 28. Be2 {[%clk
0:14:48]} 28... Rc3 {[%clk 0:04:45]} 29. Nd3 {[%clk 0:08:26]} 29... Bf5 {[%clk
0:02:36]} 30. Ra1 {[%clk 0:06:09]} 30... Nc6 {[%clk 0:01:16]} 31. Nbc5 {[%clk
0:05:19]} 31... Bxc5 {[%clk 0:00:53]} 32. Nxc5 {[%clk 0:05:03]} 32... Qb4 {[%clk
0:01:03]} 33. Bf3 {[%clk 0:01:51]} 33... Bc2 {[%clk 0:00:59]} 34. Qf1 {[%clk
0:01:21]} 34... Nxd4 {[%clk 0:01:14]} 35. exd4 {[%clk 0:00:49]} 35... Qxd4
{[%clk 0:00:50]} 36. Rxa5 {[%clk 0:00:54]} 36... Rxf3 {[%clk 0:00:41]} 37. Qe2
{[%clk 0:00:39]} 37... Qd1+ {[%clk 0:00:52]} 38. Qxd1 {[%clk 0:00:59]} 38...
Bxd1 {[%clk 0:01:20]} 39. Nd7 {[%clk 0:01:08]} 39... g6 {[%clk 0:01:00]} 40.
Rxd5 {[%clk 0:31:20]} 40... Bb3 {[%clk 0:30:57]} 41. Re5 {[%clk 0:18:39]} 41...
Rd3 {[%clk 0:28:42]} 42. Nf6+ {[%clk 0:18:21]} 42... Kg7 {[%clk 0:29:07]} 43.
Ne8+ {[%clk 0:17:57]} 43... Kf8 {[%clk 0:29:33]} 44. Nf6 {[%clk 0:14:39]} 44...
Rd1+ {[%clk 0:27:12]} 45. Kg2 {[%clk 0:15:06]} 45... Be6 {[%clk 0:27:31]} 46. h3
{[%clk 0:13:29]} 46... Ke7 {[%clk 0:25:14]} 47. Ne4 {[%clk 0:11:16]} 47... Re1
{[%clk 0:25:09]} 48. f3 {[%clk 0:04:57]} 48... Re2+ {[%clk 0:20:18]} 49. Kf1
{[%clk 0:03:18]} 49... Rc2 {[%clk 0:19:55]} 50. g4 {[%clk 0:02:40]} 50... Kf8
{[%clk 0:17:58]} 1/2-1/2

[Variant "Standard"]
[Site "Europe Echecs"]